[Event "Amateur Tournament (ATO)"]
[Site "Biel, Switzerland"]
[Date "2026.07.21"]
[Round "7.1"]
[White "Jahn, Thomas"]
[Black "Alexakis, Dimitrios"]
[Result "0-1"]
[TimeControl "90+30+30sec/move"]
[WhiteTitle "-"]
[BlackTitle "-"]
[WhiteFideId "34679430"]
[BlackFideId "4200527"]
[WhiteElo "1944"]
[BlackElo "1959"]

1. e4 {[%clk 01:30:55]} {[%emt 00:00:04]} c5 {[%clk 01:30:47]} {[%emt
00:00:13]} 2. Nf3 {[%clk 01:31:12]} {[%emt 00:00:12]} d6 {[%clk 01:31:07]}
{[%emt 00:00:10]} 3. d4 {[%clk 01:31:32]} {[%emt 00:00:10]} cxd4 {[%clk
01:31:27]} {[%emt 00:00:11]} 4. Nxd4 {[%clk 01:31:54]} {[%emt 00:00:08]} Nf6
{[%clk 01:31:45]} {[%emt 00:00:11]} 5. Nc3 {[%clk 01:32:17]} {[%emt 00:00:07]}
g6 {[%clk 01:31:40]} {[%emt 00:00:36]} 6. Bc4 {[%clk 01:31:55]} {[%emt
00:00:52]} Bg7 {[%clk 01:31:44]} {[%emt 00:00:25]} 7. Bb3 {[%clk 01:32:12]}
{[%emt 00:00:14]} O-O {[%clk 01:31:29]} {[%emt 00:00:45]} 8. f3 {[%clk
01:32:33]} {[%emt 00:00:10]} Nc6 {[%clk 01:29:54]} {[%emt 00:02:04]} 9. Be3
{[%clk 01:32:50]} {[%emt 00:00:13]} Bd7 {[%clk 01:29:45]} {[%emt 00:00:39]} 10.
Qe2 {[%clk 01:33:11]} {[%emt 00:00:09]} Rc8 {[%clk 01:24:21]} {[%emt 00:05:53]}
11. O-O-O {[%clk 01:33:26]} {[%emt 00:00:16]} Qa5 {[%clk 01:23:52]} {[%emt
00:00:59]} 12. Kb1 {[%clk 01:33:45]} {[%emt 00:00:12]} Nxd4 {[%clk 01:20:39]}
{[%emt 00:03:42]} 13. Bxd4 {[%clk 01:34:08]} {[%emt 00:00:06]} b5 {[%clk
01:18:25]} {[%emt 00:02:44]} 14. g4 {[%clk 01:34:12]} {[%emt 00:00:26]} b4
{[%clk 01:08:30]} {[%emt 00:10:25]} 15. Nd5 {[%clk 01:29:46]} {[%emt 00:04:56]}
Nxd5 {[%clk 01:07:35]} {[%emt 00:01:25]} 16. Bxd5 {[%clk 01:30:04]} {[%emt
00:00:13]} Ba4 {[%clk 01:02:35]} {[%emt 00:05:29]} 17. Bxg7 {[%clk 01:25:38]}
{[%emt 00:04:57]} Rxc2 {[%clk 00:43:26]} 18. Qd3 {[%clk 01:25:32]} {[%emt
00:20:15]} Kxg7 {[%clk 00:43:37]} {[%emt 00:00:19]} 19. b3 {[%clk 01:25:46]}
{[%emt 00:00:16]} Rc3 {[%clk 00:43:45]} {[%emt 00:00:22]} 20. Qd4+ {[%clk
01:25:19]} {[%emt 00:00:57]} e5 {[%clk 00:43:53]} {[%emt 00:00:22]} 21. Qf2
{[%clk 00:56:41]} {[%emt 00:29:07]} Bb5 {[%clk 00:42:51]} {[%emt 00:01:32]} 22.
g5 {[%clk 00:52:18]} {[%emt 00:04:54]} Bd3+ {[%clk 00:41:13]} {[%emt 00:02:08]}
23. Rxd3 {[%clk 00:51:57]} {[%emt 00:00:51]} Rxd3 {[%clk 00:41:41]} {[%emt
00:00:02]} 24. Bc4 {[%clk 00:52:19]} {[%emt 00:00:08]} Rc3 {[%clk 00:40:01]}
{[%emt 00:02:10]} 25. f4 {[%clk 00:52:05]} {[%emt 00:00:45]} exf4 {[%clk
00:36:13]} {[%emt 00:04:17]} 26. Qxf4 {[%clk 00:52:08]} {[%emt 00:00:27]} Qe5
{[%clk 00:35:44]} {[%emt 00:00:59]} 27. Qh4 {[%clk 00:50:47]} {[%emt 00:01:50]}
Rf3 {[%clk 00:29:56]} {[%emt 00:06:18]} 28. Bd5 {[%clk 00:51:12]} {[%emt
00:00:06]} Rf4 {[%clk 00:27:21]} {[%emt 00:03:04]} 29. Qg3 {[%clk 00:49:52]}
{[%emt 00:01:51]} Rxe4 {[%clk 00:26:26]} {[%emt 00:01:24]} 30. Bxe4 {[%clk
00:49:24]} {[%emt 00:00:59]} Qxe4+ {[%clk 00:26:44]} {[%emt 00:00:12]} 31. Kb2
{[%clk 00:48:22]} {[%emt 00:01:33]} Qxh1 {[%clk 00:26:59]} {[%emt 00:00:14]}
0-1

[Event "Amateur Tournament (ATO)"]
[Site "Biel, Switzerland"]
[Date "2026.07.21"]
[Round "7.2"]
[White "Pinelli, Gian"]
[Black "Zhou, Abigail"]
[Result "0-1"]
[TimeControl "90+30+30sec/move"]
[WhiteTitle "-"]
[BlackTitle "-"]
[WhiteFideId "1348710"]
[BlackFideId "39922081"]
[WhiteElo "1824"]
[BlackElo "1831"]

1. e4 {[%clk 01:30:56]} {[%emt 00:00:03]} e6 {[%clk 01:30:55]} {[%emt
00:00:05]} 2. d4 {[%clk 01:31:20]} {[%emt 00:00:06]} d5 {[%clk 01:31:20]}
{[%emt 00:00:06]} 3. Nd2 {[%clk 01:31:41]} {[%emt 00:00:09]} c5 {[%clk
01:31:43]} {[%emt 00:00:07]} 4. exd5 {[%clk 01:31:58]} {[%emt 00:00:14]} exd5
{[%clk 01:32:05]} {[%emt 00:00:07]} 5. Ngf3 {[%clk 01:32:15]} {[%emt 00:00:13]}
Nc6 {[%clk 01:32:17]} {[%emt 00:00:17]} 6. Bb5 {[%clk 01:32:36]} {[%emt
00:00:10]} Nf6 {[%clk 01:32:13]} {[%emt 00:00:34]} 7. O-O {[%clk 01:32:51]}
{[%emt 00:00:14]} Be7 {[%clk 01:32:34]} {[%emt 00:00:09]} 8. dxc5 {[%clk
01:33:13]} {[%emt 00:00:09]} Bxc5 {[%clk 01:32:56]} {[%emt 00:00:08]} 9. Re1+
{[%clk 01:33:32]} {[%emt 00:00:11]} Be6 {[%clk 01:22:20]} {[%emt 00:11:06]} 10.
Nb3 {[%clk 01:33:46]} {[%emt 00:00:17]} Bb6 {[%clk 01:19:59]} {[%emt 00:02:51]}
11. Nbd4 {[%clk 01:34:06]} {[%emt 00:00:09]} O-O {[%clk 01:06:05]} {[%emt
00:14:24]} 12. Bxc6 {[%clk 01:30:29]} {[%emt 00:04:06]} bxc6 {[%clk 01:06:26]}
{[%emt 00:00:10]} 13. Nxc6 {[%clk 01:30:44]} {[%emt 00:00:15]} Qc7 {[%clk
01:05:06]} {[%emt 00:01:50]} 14. Nce5 {[%clk 01:21:53]} {[%emt 00:09:21]} Bf5
{[%clk 00:57:49]} {[%emt 00:07:47]} 15. c3 {[%clk 01:20:46]} {[%emt 00:01:37]}
Be4 {[%clk 00:53:58]} {[%emt 00:04:21]} 16. h3 {[%clk 01:12:53]} {[%emt
00:08:23]} Rae8 {[%clk 00:42:05]} {[%emt 00:12:23]} 17. Be3 {[%clk 01:00:49]}
{[%emt 00:12:34]} Bxe3 {[%clk 00:37:35]} {[%emt 00:04:59]} 18. Rxe3 {[%clk
01:00:31]} {[%emt 00:00:48]} Rxe5 {[%clk 00:37:26]} {[%emt 00:00:39]} 19. Nxe5
{[%clk 01:00:36]} {[%emt 00:00:25]} Qxe5 {[%clk 00:37:50]} {[%emt 00:00:07]} 20.
f3 {[%clk 01:00:13]} {[%emt 00:00:52]} Qg5 {[%clk 00:38:10]} {[%emt 00:00:11]}
21. Qd4 {[%clk 01:00:01]} {[%emt 00:00:40]} Bf5 {[%clk 00:37:31]} {[%emt
00:01:11]} 22. Re5 {[%clk 00:53:44]} {[%emt 00:06:45]} Qg6 {[%clk 00:34:54]}
{[%emt 00:03:09]} 23. h4 {[%clk 00:50:56]} {[%emt 00:03:18]} h6 {[%clk
00:28:12]} {[%emt 00:07:12]} 24. h5 {[%clk 00:47:18]} {[%emt 00:04:08]} Qh7
{[%clk 00:27:46]} {[%emt 00:00:56]} 25. Qxa7 {[%clk 00:44:38]} {[%emt
00:03:10]} Be6 {[%clk 00:26:51]} {[%emt 00:01:25]} 26. a4 {[%clk 00:41:56]}
{[%emt 00:03:12]} Qc2 {[%clk 00:25:33]} {[%emt 00:01:48]} 27. Qf2 {[%clk
00:40:47]} {[%emt 00:01:39]} Qb3 {[%clk 00:24:19]} {[%emt 00:01:44]} 28. Ra3
{[%clk 00:40:51]} {[%emt 00:00:26]} Qb8 {[%clk 00:24:05]} {[%emt 00:00:44]} 29.
Qe2 {[%clk 00:39:36]} {[%emt 00:01:43]} Rd8 {[%clk 00:17:15]} {[%emt 00:07:21]}
30. a5 {[%clk 00:37:38]} {[%emt 00:02:29]} d4 {[%clk 00:15:39]} {[%emt
00:02:06]} 31. cxd4 {[%clk 00:31:41]} {[%emt 00:06:27]} Rxd4 {[%clk 00:15:58]}
{[%emt 00:00:11]} 32. Rb5 {[%clk 00:28:06]} {[%emt 00:04:05]} Qf4 {[%clk
00:14:23]} {[%emt 00:02:05]} 33. Qe1 {[%clk 00:20:05]} {[%emt 00:08:31]} Rd2
{[%clk 00:11:00]} {[%emt 00:03:54]} 34. Ra1 {[%clk 00:14:09]} {[%emt 00:06:25]}
Bh3 {[%clk 00:08:41]} {[%emt 00:02:49]} 35. Rb8+ {[%clk 00:11:57]} {[%emt
00:02:42]} Kh7 {[%clk 00:08:47]} {[%emt 00:00:24]} 36. Qb1+ {[%clk 00:11:46]}
{[%emt 00:00:41]} g6 {[%clk 00:08:45]} {[%emt 00:00:32]} 37. hxg6+ {[%clk
00:12:06]} {[%emt 00:00:10]} Kg7 {[%clk 00:09:01]} {[%emt 00:00:14]} 38. Rg8+
{[%clk 00:11:06]} {[%emt 00:01:30]} Nxg8 {[%clk 00:09:07]} {[%emt 00:00:24]} 39.
Qe4 {[%clk 00:11:35]} {[%emt 00:00:01]} Rxg2+ {[%clk 00:09:15]} {[%emt
00:00:22]} 40. Kf1 {[%clk 00:12:00]} {[%emt 00:00:05]} Rxb2+ {[%clk 00:09:30]}
{[%emt 00:00:14]} 0-1

[Event "Amateur Tournament (ATO)"]
[Site "Biel, Switzerland"]
[Date "2026.07.21"]
[Round "7.3"]
[White "Jud, Marc"]
[Black "Materia, Mario"]
[Result "1-0"]
[TimeControl "90+30+30sec/move"]
[WhiteTitle "-"]
[BlackTitle "-"]
[WhiteFideId "1309099"]
[BlackFideId "651082241"]
[WhiteElo "1991"]
[BlackElo "1857"]

1. d4 {[%clk 01:30:57]} {[%emt 00:00:02]} Nf6 {[%clk 01:30:54]} {[%emt
00:00:06]} 2. Nf3 {[%clk 01:31:15]} {[%emt 00:00:11]} e6 {[%clk 01:31:15]}
{[%emt 00:00:10]} 3. c4 {[%clk 01:31:24]} {[%emt 00:00:22]} d5 {[%clk
01:31:39]} {[%emt 00:00:05]} 4. e3 {[%clk 01:31:39]} {[%emt 00:00:15]} Be7
{[%clk 01:31:40]} {[%emt 00:00:30]} 5. Bd3 {[%clk 01:31:41]} {[%emt 00:00:28]}
O-O {[%clk 01:31:46]} {[%emt 00:00:24]} 6. O-O {[%clk 01:32:00]} {[%emt
00:00:10]} b6 {[%clk 01:30:42]} {[%emt 00:01:35]} 7. cxd5 {[%clk 01:31:53]}
{[%emt 00:00:37]} exd5 {[%clk 01:30:33]} {[%emt 00:00:39]} 8. b3 {[%clk
01:31:36]} {[%emt 00:00:46]} Bb7 {[%clk 01:28:53]} {[%emt 00:02:11]} 9. Bb2
{[%clk 01:31:56]} {[%emt 00:00:10]} Nbd7 {[%clk 01:25:17]} {[%emt 00:04:06]} 10.
Nbd2 {[%clk 01:30:58]} {[%emt 00:01:28]} c5 {[%clk 01:25:29]} {[%emt 00:00:18]}
11. Rc1 {[%clk 01:30:54]} {[%emt 00:00:33]} Rc8 {[%clk 01:23:15]} {[%emt
00:02:45]} 12. Ne5 {[%clk 01:30:17]} {[%emt 00:01:07]} cxd4 {[%clk 01:07:33]}
{[%emt 00:16:12]} 13. exd4 {[%clk 01:25:35]} {[%emt 00:05:11]} Rxc1 {[%clk
01:07:39]} {[%emt 00:00:25]} 14. Qxc1 {[%clk 01:25:51]} {[%emt 00:00:14]} Nxe5
{[%clk 01:06:19]} {[%emt 00:01:50]} 15. dxe5 {[%clk 01:25:40]} {[%emt
00:00:41]} Ne4 {[%clk 01:06:14]} {[%emt 00:00:35]} 16. Qc2 {[%clk 01:21:15]}
{[%emt 00:04:55]} Qa8 {[%clk 01:00:54]} {[%emt 00:05:50]} 17. Nxe4 {[%clk
01:18:04]} {[%emt 00:03:40]} dxe4 {[%clk 01:01:11]} {[%emt 00:00:14]} 18. Bc4
{[%clk 01:17:59]} {[%emt 00:00:35]} Qc8 {[%clk 00:36:43]} {[%emt 00:24:58]} 19.
Qe2 {[%clk 01:13:55]} {[%emt 00:04:34]} Qf5 {[%clk 00:35:05]} {[%emt 00:02:08]}
20. Rd1 {[%clk 01:05:43]} {[%emt 00:08:41]} Bc5 {[%clk 00:33:11]} {[%emt
00:02:25]} 21. a3 {[%clk 00:48:05]} {[%emt 00:18:08]} a5 {[%clk 00:26:35]}
{[%emt 00:07:06]} 22. Bd4 {[%clk 00:38:03]} {[%emt 00:10:31]} Bxd4 {[%clk
00:24:55]} {[%emt 00:02:10]} 23. Rxd4 {[%clk 00:38:26]} {[%emt 00:00:08]} Qxe5
{[%clk 00:24:20]} {[%emt 00:01:05]} 24. Qd2 {[%clk 00:22:47]} {[%emt 00:16:09]}
Bc6 {[%clk 00:15:23]} {[%emt 00:09:27]} 25. h3 {[%clk 00:18:17]} {[%emt
00:04:59]} Bb5 {[%clk 00:09:57]} {[%emt 00:05:57]} 26. Bxb5 {[%clk 00:14:36]}
{[%emt 00:04:11]} Qxb5 {[%clk 00:10:20]} {[%emt 00:00:07]} 27. Qe3 {[%clk
00:13:30]} {[%emt 00:01:36]} f5 {[%clk 00:08:09]} {[%emt 00:02:41]} 28. Rd6
{[%clk 00:12:57]} {[%emt 00:01:03]} Qe5 {[%clk 00:03:07]} {[%emt 00:05:31]} 29.
Qxb6 {[%clk 00:10:45]} {[%emt 00:02:42]} f4 {[%clk 00:03:18]} {[%emt 00:00:20]}
30. Qd4 {[%clk 00:05:43]} {[%emt 00:05:32]} Qxd4 {[%clk 00:01:25]} {[%emt
00:02:23]} 31. Rxd4 {[%clk 00:06:07]} {[%emt 00:00:06]} Rb8 {[%clk 00:01:32]}
{[%emt 00:00:23]} 32. b4 {[%clk 00:06:08]} {[%emt 00:00:29]} axb4 {[%clk
00:01:59]} {[%emt 00:00:03]} 33. axb4 {[%clk 00:06:33]} {[%emt 00:00:05]} Re8
{[%clk 00:02:00]} {[%emt 00:00:28]} 34. Kf1 {[%clk 00:06:42]} {[%emt 00:00:21]}
Kf7 {[%clk 00:02:17]} {[%emt 00:00:14]} 35. f3 {[%clk 00:06:51]} {[%emt
00:00:21]} exf3 {[%clk 00:02:07]} {[%emt 00:00:40]} 36. Rxf4+ {[%clk 00:07:16]}
{[%emt 00:00:05]} Ke7 {[%clk 00:02:12]} {[%emt 00:00:25]} 37. Rxf3 {[%clk
00:06:58]} {[%emt 00:00:48]} Rb8 {[%clk 00:02:36]} {[%emt 00:00:06]} 38. Rf4
{[%clk 00:07:17]} {[%emt 00:00:11]} Rb5 {[%clk 00:02:53]} {[%emt 00:00:13]} 39.
Ke2 {[%clk 00:07:37]} {[%emt 00:00:10]} Rd5 {[%clk 00:02:42]} {[%emt 00:00:41]}
40. Ke3 {[%clk 00:07:51]} {[%emt 00:00:16]} g5 {[%clk 00:02:51]} {[%emt
00:00:21]} 41. Rd4 {[%clk 00:07:53]} {[%emt 00:00:27]} Rf5 {[%clk 00:02:14]}
{[%emt 00:01:06]} 42. Rd2 {[%clk 00:07:11]} {[%emt 00:01:13]} Ke6 {[%clk
00:02:29]} {[%emt 00:00:16]} 43. Rb2 {[%clk 00:06:56]} {[%emt 00:00:45]} Rb5
{[%clk 00:02:20]} {[%emt 00:00:39]} 44. Kd4 {[%clk 00:04:55]} {[%emt 00:02:31]}
Kd6 {[%clk 00:01:53]} {[%emt 00:00:56]} 45. Kc4 {[%clk 00:05:10]} {[%emt
00:00:16]} Kc6 {[%clk 00:02:02]} {[%emt 00:00:21]} 46. Rf2 {[%clk 00:05:19]}
{[%emt 00:00:20]} Re5 {[%clk 00:02:01]} {[%emt 00:00:32]} 47. Rf6+ {[%clk
00:04:35]} {[%emt 00:01:14]} Kc7 {[%clk 00:02:12]} {[%emt 00:00:18]} 48. Rf7+
{[%clk 00:04:44]} {[%emt 00:00:21]} Kc6 {[%clk 00:01:57]} {[%emt 00:00:46]} 49.
b5+ {[%clk 00:03:19]} {[%emt 00:01:56]} Kb6 {[%clk 00:01:51]} {[%emt 00:00:36]}
50. Rf6+ {[%clk 00:03:35]} {[%emt 00:00:14]} Kb7 {[%clk 00:01:26]} {[%emt
00:00:54]} 51. Rh6 {[%clk 00:02:50]} {[%emt 00:01:15]} Re7 {[%clk 00:30:00]}
{[%emt 00:01:56]} 52. Kd5 {[%clk 00:32:13]} {[%emt 00:01:06]} Re2 {[%clk
00:29:53]} {[%emt 00:00:38]} 53. g4 {[%clk 00:32:12]} {[%emt 00:00:30]} Re3
{[%clk 00:29:28]} {[%emt 00:00:56]} 54. Rxh7+ {[%clk 00:32:03]} {[%emt
00:00:39]} Kb6 {[%clk 00:29:55]} {[%emt 00:00:03]} 55. Rh5 {[%clk 00:32:07]}
{[%emt 00:00:26]} Rb3 {[%clk 00:29:42]} {[%emt 00:00:42]} 56. Ke6 {[%clk
00:31:22]} {[%emt 00:01:16]} Rxb5 {[%clk 00:29:46]} {[%emt 00:00:26]} 57. Kf6
{[%clk 00:31:42]} {[%emt 00:00:10]} Kc7 {[%clk 00:29:53]} {[%emt 00:00:24]} 58.
Rxg5 {[%clk 00:31:44]} {[%emt 00:00:28]} Rb3 {[%clk 00:30:12]} {[%emt
00:00:09]} 59. h4 {[%clk 00:31:58]} {[%emt 00:00:17]} Kd7 {[%clk 00:30:42]}
{[%emt 00:00:01]} 60. Kf7 {[%clk 00:31:26]} {[%emt 00:01:01]} 1-0

[Event "Amateur Tournament (ATO)"]
[Site "Biel, Switzerland"]
[Date "2026.07.21"]
[Round "7.4"]
[White "Hofmann, Hans"]
[Black "Trubini, Timon"]
[Result "0-1"]
[TimeControl "90+30+30sec/move"]
[WhiteTitle "-"]
[BlackTitle "-"]
[WhiteFideId "1332503"]
[BlackFideId "1347799"]
[WhiteElo "1871"]
[BlackElo "1920"]

1. d4 {[%clk 01:30:57]} {[%emt 00:00:02]} Nf6 {[%clk 01:30:51]} {[%emt
00:00:09]} 2. c4 {[%clk 01:31:20]} {[%emt 00:00:08]} g6 {[%clk 01:31:16]}
{[%emt 00:00:05]} 3. Nc3 {[%clk 01:31:44]} {[%emt 00:00:05]} Bg7 {[%clk
01:31:42]} {[%emt 00:00:05]} 4. e4 {[%clk 01:32:03]} {[%emt 00:00:11]} d6
{[%clk 01:32:06]} {[%emt 00:00:06]} 5. h3 {[%clk 01:32:24]} {[%emt 00:00:09]}
O-O {[%clk 01:32:29]} {[%emt 00:00:07]} 6. Be3 {[%clk 01:32:48]} {[%emt
00:00:07]} e5 {[%clk 01:32:40]} {[%emt 00:00:18]} 7. d5 {[%clk 01:33:11]}
{[%emt 00:00:07]} a5 {[%clk 01:31:58]} {[%emt 00:01:13]} 8. g4 {[%clk
01:33:20]} {[%emt 00:00:20]} Na6 {[%clk 01:31:43]} {[%emt 00:00:45]} 9. Nge2
{[%clk 01:33:41]} {[%emt 00:00:09]} Nc5 {[%clk 01:26:03]} {[%emt 00:06:10]} 10.
Ng3 {[%clk 01:34:03]} {[%emt 00:00:08]} b6 {[%clk 01:06:02]} {[%emt 00:20:32]}
11. Be2 {[%clk 01:33:57]} {[%emt 00:00:35]} Ne8 {[%clk 01:03:50]} {[%emt
00:02:41]} 12. g5 {[%clk 01:14:46]} {[%emt 00:19:41]} f5 {[%clk 00:56:31]}
{[%emt 00:07:50]} 13. gxf6 {[%clk 01:14:45]} {[%emt 00:00:32]} Bxf6 {[%clk
00:48:17]} {[%emt 00:08:45]} 14. Qd2 {[%clk 01:08:30]} {[%emt 00:06:44]} Bh4
{[%clk 00:46:17]} {[%emt 00:02:30]} 15. O-O-O {[%clk 01:07:44]} {[%emt
00:01:17]} Ng7 {[%clk 00:41:26]} {[%emt 00:05:20]} 16. Rdg1 {[%clk 01:06:40]}
{[%emt 00:01:33]} a4 {[%clk 00:40:30]} {[%emt 00:01:27]} 17. Kb1 {[%clk
01:05:17]} {[%emt 00:01:53]} a3 {[%clk 00:32:37]} {[%emt 00:08:23]} 18. b3
{[%clk 01:04:34]} {[%emt 00:01:13]} g5 {[%clk 00:25:36]} {[%emt 00:07:31]} 19.
Rg2 {[%clk 01:02:00]} h6 {[%clk 00:25:43]} {[%emt 00:03:27]} 20. Qd1 {[%clk
00:52:33]} Qf6 {[%clk 00:20:26]} {[%emt 00:15:44]} 21. Nf1 {[%clk 00:46:04]}
Qg6 {[%clk 00:20:07]} {[%emt 00:07:48]} 22. Nd2 {[%clk 00:45:53]} Bd7 {[%clk
00:12:09]} {[%emt 00:09:09]} 23. Ka1 {[%clk 00:45:49]} Rf6 {[%clk 00:09:29]}
{[%emt 00:03:44]} 24. Nf3 {[%clk 00:34:51]} Nxe4 {[%clk 00:09:26]} {[%emt
00:12:02]} 25. Nxh4 {[%clk 00:35:13]} Nxc3 {[%clk 00:09:46]} {[%emt 00:00:17]}
26. Qd2 {[%emt 00:04:55]} Qe4 {[%emt 00:09:59]} 27. Qxc3 {[%clk 00:23:01]}
{[%emt 00:00:31]} Qxh4 {[%clk 00:07:04]} {[%emt 00:01:29]} 28. Bg4 {[%clk
00:20:01]} {[%emt 00:03:30]} Bxg4 {[%clk 00:05:54]} {[%emt 00:01:40]} 29. Rxg4
{[%clk 00:20:22]} {[%emt 00:00:09]} Qh5 {[%clk 00:05:33]} {[%emt 00:00:51]} 30.
Qc1 {[%clk 00:18:25]} {[%emt 00:02:27]} Rf3 {[%clk 00:04:29]} {[%emt 00:01:34]}
31. Qf1 {[%clk 00:16:35]} {[%emt 00:02:20]} Raf8 {[%clk 00:02:29]} {[%emt
00:02:30]} 32. Qg2 {[%clk 00:16:59]} {[%emt 00:00:06]} Qf7 {[%clk 00:01:54]}
{[%emt 00:01:04]} 33. h4 {[%clk 00:17:06]} {[%emt 00:00:24]} Qf5 {[%clk
00:01:48]} {[%emt 00:00:36]} 34. hxg5 {[%clk 00:16:24]} {[%emt 00:01:11]} Qc2
{[%clk 00:01:49]} {[%emt 00:00:30]} 35. Rb1 {[%clk 00:16:08]} {[%emt 00:00:45]}
Qc3+ {[%clk 00:02:12]} {[%emt 00:00:08]} 0-1

[Event "Amateur Tournament (ATO)"]
[Site "Biel, Switzerland"]
[Date "2026.07.21"]
[Round "7.5"]
[White "Materia, Matteo"]
[Black "Aegerter, Fabrice"]
[Result "1/2-1/2"]
[TimeControl "90+30+30sec/move"]
[WhiteTitle "-"]
[BlackTitle "-"]
[WhiteFideId "45150575"]
[BlackFideId "1344854"]
[WhiteElo "1825"]
[BlackElo "1915"]

1. d4 {[%clk 01:30:57]} {[%emt 00:00:03]} Nf6 {[%clk 01:29:12]} {[%emt
00:01:48]} 2. g3 {[%clk 01:31:19]} {[%emt 00:00:09]} g6 {[%clk 01:29:09]}
{[%emt 00:00:32]} 3. Bg2 {[%clk 01:31:31]} {[%emt 00:00:18]} d5 {[%clk
01:28:34]} {[%emt 00:01:04]} 4. Nf3 {[%clk 01:30:12]} {[%emt 00:01:50]} Bg7
{[%clk 01:28:00]} {[%emt 00:01:04]} 5. O-O {[%clk 01:29:26]} {[%emt 00:01:16]}
O-O {[%clk 01:25:48]} {[%emt 00:02:42]} 6. c4 {[%clk 01:25:09]} {[%emt
00:04:47]} c5 {[%clk 01:23:35]} {[%emt 00:02:42]} 7. Nc3 {[%clk 01:08:48]}
{[%emt 00:16:52]} cxd4 {[%clk 01:14:50]} {[%emt 00:09:15]} 8. Qxd4 {[%clk
01:02:19]} {[%emt 00:06:59]} Nc6 {[%clk 01:10:48]} {[%emt 00:04:31]} 9. Qh4
{[%clk 00:58:44]} {[%emt 00:04:05]} d4 {[%clk 01:03:14]} {[%emt 00:08:05]} 10.
Rd1 {[%clk 00:54:19]} {[%emt 00:04:55]} Qa5 {[%clk 00:54:19]} {[%emt 00:09:25]}
11. Nxd4 {[%clk 00:42:20]} {[%emt 00:12:30]} Ng4 {[%clk 00:37:39]} {[%emt
00:17:09]} 12. Nxc6 {[%clk 00:35:53]} {[%emt 00:06:57]} bxc6 {[%clk 00:36:49]}
{[%emt 00:01:19]} 13. Qxe7 {[%clk 00:30:56]} {[%emt 00:05:27]} Bf6 {[%clk
00:33:21]} {[%emt 00:03:59]} 14. Qe4 {[%clk 00:30:35]} {[%emt 00:00:51]} Qb6
{[%clk 00:28:13]} {[%emt 00:05:38]} 15. Be3 {[%clk 00:19:39]} {[%emt 00:11:26]}
Qxb2 {[%clk 00:20:32]} {[%emt 00:08:11]} 16. Qxc6 {[%clk 00:04:44]} {[%emt
00:15:26]} Nxe3 {[%clk 00:05:33]} {[%emt 00:15:28]} 17. fxe3 {[%clk 00:04:56]}
{[%emt 00:00:18]} Qxc3 {[%clk 00:05:24]} {[%emt 00:00:39]} 18. Qxa8 {[%clk
00:04:51]} {[%emt 00:00:35]} Qxe3+ {[%clk 00:05:38]} {[%emt 00:00:16]} 19. Kh1
{[%clk 00:05:19]} {[%emt 00:00:02]} Bxa1 {[%clk 00:04:07]} {[%emt 00:02:01]} 20.
Rxa1 {[%clk 00:05:48]} {[%emt 00:00:01]} Be6 {[%clk 00:02:31]} {[%emt
00:02:06]} 21. Qe4 {[%clk 00:03:23]} {[%emt 00:02:55]} Qxe4 {[%clk 00:01:58]}
{[%emt 00:01:03]} 22. Bxe4 {[%clk 00:03:49]} {[%emt 00:00:04]} Bxc4 {[%clk
00:02:01]} {[%emt 00:00:27]} 23. Bd3 {[%clk 00:03:56]} {[%emt 00:00:24]}
1/2-1/2

[Event "Amateur Tournament (ATO)"]
[Site "Biel, Switzerland"]
[Date "2026.07.21"]
[Round "7.6"]
[White "Bangerter, Ena"]
[Black "Maitre, Fabien"]
[Result "1-0"]
[TimeControl "90+30+30sec/move"]
[WhiteTitle "-"]
[BlackTitle "-"]
[WhiteFideId "1344102"]
[BlackFideId "1315471"]
[WhiteElo "1883"]
[BlackElo "1834"]

1. d4 {[%clk 01:29:11]} {[%emt 00:01:48]} f5 {[%clk 01:30:53]} {[%emt
00:00:08]} 2. Bg5 {[%clk 01:29:34]} {[%emt 00:00:06]} g6 {[%clk 01:31:18]}
{[%emt 00:00:05]} 3. Nc3 {[%clk 01:29:41]} {[%emt 00:00:23]} Bg7 {[%clk
01:31:38]} {[%emt 00:00:10]} 4. h4 {[%clk 01:29:18]} {[%emt 00:00:52]} h6
{[%clk 01:31:18]} {[%emt 00:00:51]} 5. Bf4 {[%clk 01:29:32]} {[%emt 00:00:16]}
Nf6 {[%clk 01:28:47]} {[%emt 00:03:02]} 6. Nf3 {[%clk 01:25:55]} {[%emt
00:04:06]} d6 {[%clk 01:28:35]} {[%emt 00:00:42]} 7. e3 {[%clk 01:23:28]}
{[%emt 00:02:57]} Nh5 {[%clk 01:22:19]} {[%emt 00:06:46]} 8. Bh2 {[%clk
01:16:49]} {[%emt 00:07:08]} a6 {[%clk 01:11:14]} {[%emt 00:11:36]} 9. Bd3
{[%clk 01:14:01]} {[%emt 00:03:17]} d5 {[%clk 01:06:43]} {[%emt 00:05:02]} 10.
g4 {[%clk 01:08:25]} {[%emt 00:06:06]} Nf6 {[%clk 01:04:52]} {[%emt 00:02:22]}
11. Ne5 {[%clk 01:06:10]} {[%emt 00:02:44]} Nxg4 {[%clk 01:02:49]} {[%emt
00:02:33]} 12. Nxg4 {[%clk 01:03:07]} {[%emt 00:03:33]} fxg4 {[%clk 01:02:54]}
{[%emt 00:00:25]} 13. Bxg6+ {[%clk 01:03:30]} {[%emt 00:00:06]} Kf8 {[%clk
01:03:03]} {[%emt 00:00:22]} 14. f3 {[%clk 01:00:41]} {[%emt 00:03:19]} Bf6
{[%clk 00:55:01]} {[%emt 00:08:33]} 15. fxg4 {[%clk 00:53:41]} {[%emt
00:07:30]} Bxh4+ {[%clk 00:50:30]} {[%emt 00:05:00]} 16. Kd2 {[%clk 00:51:52]}
{[%emt 00:02:19]} Kg7 {[%clk 00:49:14]} {[%emt 00:01:46]} 17. Bh5 {[%clk
00:48:46]} {[%emt 00:03:35]} Bf6 {[%clk 00:46:44]} {[%emt 00:03:00]} 18. Qe2
{[%clk 00:41:22]} {[%emt 00:07:55]} Be6 {[%clk 00:43:30]} {[%emt 00:03:43]} 19.
Raf1 {[%clk 00:38:59]} {[%emt 00:02:53]} Rf8 {[%clk 00:42:15]} {[%emt
00:01:46]} 20. Qd3 {[%clk 00:38:12]} {[%emt 00:01:17]} Bf7 {[%clk 00:42:00]}
{[%emt 00:00:44]} 21. Bxf7 {[%clk 00:32:40]} {[%emt 00:06:03]} Rxf7 {[%clk
00:40:38]} {[%emt 00:01:52]} 22. Bf4 {[%clk 00:31:27]} {[%emt 00:01:43]} Qe8
{[%clk 00:31:45]} {[%emt 00:09:24]} 23. Bxh6+ {[%clk 00:31:09]} {[%emt
00:00:47]} Kg8 {[%clk 00:31:59]} {[%emt 00:00:15]} 24. Qg6+ {[%clk 00:30:49]}
{[%emt 00:00:51]} 1-0